Cogmind - Beta 15 *** ADVENTURER MODE // 2025.09.14 @ 18:55:24 Player: Esquilofreniko Result: Destroyed by D-53 Grenadier with Mini Grenade Launcher Performance ------------- Evolutions (1) 500 Regions Visited (4) 800 Robots Destroyed (23) 115 Value Destroyed (612) 612 Prototype IDs (3) 60 Alien Tech Used (0) 0 Bonus (200) 200 TOTAL SCORE: 2287 Bonus ------- Pacifist 200 Cogmind --------- Core Integrity 0/400 Matter 300/300 Energy 100/100 System Corruption 0% Temperature Cool (0) Movement Core (200) Ox3 Location -9/Mines Parts ------- > --- POWER (2) -------- (None) > --- PROPULSION (2) --- (None) > --- UTILITY (3) ------ Medium Storage Unit Improved Sensor Array > --- WEAPON (2) ------- (None) > --- INVENTORY (10) --- Improved Ion Engine Heavy Ion Engine Light Treads Weight Redist. System Improved Signal Interpreter Trap Extractor (0/4) Small Laser Pulse Rifle Heavy Assault Rifle Shotgun Peak State ------------ > --- POWER ------------ Heavy Ion Engine Heavy Ion Engine > --- PROPULSION ------- Light Treads Light Treads > --- UTILITY ---------- Medium Storage Unit Improved Sensor Array Terrain Scanner > --- WEAPON ----------- Improved EM Shotgun Medium Laser > --- INVENTORY -------- Improved Ion Engine Heavy Ion Engine Light Treads Weight Redist. System Improved Signal Interpreter Tractor Beam Trap Extractor Small Laser Pulse Rifle Heavy Assault Rifle [Rating: 19] Favorites ----------- Power Heavy Ion Engine Engine Heavy Ion Engine Propulsion Aluminum Leg Treads Light Treads Leg Aluminum Leg Wheel Wheel Utility Terrain Scanner Device Terrain Scanner Storage Medium Storage Unit Weapon Medium Laser Energy Gun Medium Laser Energy Cannon Advanced Beam Cannon Launcher Rocket Launcher Build | -11 -10 -10 -9 -9 ------- Run | Yrd Mat Min Mat Min Slots Evolved 2 | . . . 2 . Power 1 | . . . 1 . Propulsion . | . . . . . Utility 1 | . . . 1 . Weapon . | . . . . . Parts Attached 22 | 9 . . 11 2 Power 4 | 2 . . 2 . Engine 4 | 2 . . 2 . Core . | . . . . . Reactor . | . . . . . Propulsion 8 | 4 . . 2 2 Treads 3 | 1 . . 2 . Leg 4 | 2 . . . 2 Wheel 1 | 1 . . . . Hover . | . . . . . Flight . | . . . . . Utility 4 | 1 . . 3 . Device 2 | . . . 2 . Storage 2 | 1 . . 1 . Processor . | . . . . . Hackware . | . . . . . Protection . | . . . . . Artifact . | . . . . . Weapon 6 | 2 . . 4 . Energy Gun 4 | 2 . . 2 . Energy Cannon 1 | . . . 1 . Ballistic Gun . | . . . . . Ballistic Cannon . | . . . . . Launcher 1 | . . . 1 . Special Weapon . | . . . . . Impact Weapon . | . . . . . Slashing Weapon . | . . . . . Piercing Weapon . | . . . . . Special Melee Weapon . | . . . . . Unidentified Prototypes 3 | . . . 3 . Parts Lost 10 | . . . 3 7 Power 4 | . . . 2 2 Propulsion 3 | . . . 1 2 Utility 1 | . . . . 1 Weapon 2 | . . . . 2 Highest Loss Streak 7 | . . . 3 7 To Critical Strikes . | . . . . . Average Backups 6 | 1 2 3 5 9 Power 1 | . 1 1 . 1 Propulsion 1 | . . 1 1 1 Utility 2 | . . . 1 3 Weapon 2 | . 1 1 2 3 Tool/Special . | . . . . . Unused Backups 12 | . . . 1 11 Power 2 | . . . . 2 Propulsion 2 | . . . 1 1 Utility 4 | . . . . 4 Weapon 4 | . . . . 4 Tool/Special . | . . . . . Average Slot Usage (%) 89 | . 85 85 75 98 Engine 20 | . 14 14 19 21 Treads 1 | . . . 3 . Leg 19 | . 28 28 15 20 Device 14 | . . . 7 21 Storage 11 | . 14 14 11 11 Energy Gun 19 | . 28 28 14 21 Launcher 1 | . . . 3 . Peak Build Rating 19 | 6 6 6 18 19 Average Rating 13 | 4 6 6 8 18 On Entrance 7 | . 6 6 6 18 Naked Turns . | . . . . . Heaviest Build 33 | 14 12 12 33 33 Greatest Support 40 | 20 20 20 40 40 Greatest Overweight (x) 8 | . . . 8 6 Average Overweight (x) . | . . . . 1 Largest Inventory Capacity 10 | 8 8 8 10 10 Average Capacity 9 | 6 8 8 8 10 Most Carried 10 | 5 3 3 10 10 Average Carried 7 | 1 2 3 5 9 Final Capacity 10 | 8 8 8 10 10 Final Carried 10 | 2 3 3 9 10 Class Distribution -------------------- 100% | Mutant Dominant Class ---------------- Mutant | -10/Materials Mutant | -10/Mines Mutant | -9/Materials Mutant | -9/Mines Resources | -11 -10 -10 -9 -9 ----------- Run | Yrd Mat Min Mat Min Matter Collected 497 | 118 . . 289 90 Remotely . | . . . . . Salvage Created 832 | . . . 636 196 Parts 46 | . . . 34 12 Haulers Intercepted 1 | . . . 1 . Recyclers Shooed 1 | . . . 1 . Parts Field Recycled . | . . . . . Retrieved Matter . | . . . . . Parts Self-Destructed . | . . . . . Prevented . | . . . . . Kills | -11 -10 -10 -9 -9 ------- Run | Yrd Mat Min Mat Min Combat Hostiles Destroyed 17 | . . . 14 3 Guns 13 | . . . 10 3 AOE 4 | . . . 4 . Classes Destroyed 8 | . . . 7 1 Worker 1 | . . . 1 . Builder 1 | . . . 1 . Hauler 1 | . . . 1 . Recycler 3 | . . . 2 1 Swarmer 4 | . . . 4 . Grunt 7 | . . . 5 2 Duelist 1 | . . . . 1 Sentry 5 | . . . 5 . Best Kill Streak 8 | . . . 8 3 Combat Bots Only 4 | . . . 4 3 Max Kills in Single Turn 2 | . . . 2 1 Gunslinging . | . . . . . Exploded 1 | . . . 1 . Melee . | . . . . . Uniques/NPCs Destroyed . | . . . . . Combat | -11 -10 -10 -9 -9 -------- Run | Yrd Mat Min Mat Min Hostile Shots Fired 134 | . . . 92 42 Missed 43 | . . . 36 7 Hits 91 | . . . 56 35 Projectile 91 | . . . 56 35 AOE 23 | . . . . 23 Critical Strikes 2 | . . . 2 . Damage Taken 1432 | . . . 602 830 Core 409 | . . . 97 312 Absorbed by Shields . | . . . . . Ignored by Resistances 412 | . . . 179 233 Core Remaining (%) 100 | 100 . 100 . . Volleys Fired 49 | . 1 . 35 13 Largest 2 | . 2 . 2 2 Hottest 100 | . 100 . 100 95 Shots Fired 80 | . 2 . 57 21 Gun 72 | . 2 . 49 21 Cannon . | . . . . . Launcher 8 | . . . 8 . Special . | . . . . . Kinetic . | . . . . . Thermal 60 | . 2 . 45 13 Explosive 8 | . . . 8 . Electromagnetic 12 | . . . 4 8 Robot Hit Streak 15 | . . . 15 10 Robot Miss Streak 2 | . 2 . 2 2 Penetration Max . | . . . . . Secondary Targets 3 | . . . 2 1 Max Gunslinging Chain 1 | . . . 1 1 Shots Hit Robots 57 | . . . 41 16 Core Hits 45 | . . . 35 10 Critical Kills . | . . . . . Critical Parts Destroyed . | . . . . . Critical Strikes 6 | . . . 6 . Burn 6 | . . . 6 . Melee Attacks . | . . . . . Impact . | . . . . . Slashing . | . . . . . Piercing . | . . . . . Sneak Attacks . | . . . . . Combat Hostiles . | . . . . . Follow-up Attacks . | . . . . . Damage Inflicted 1226 | . . . 975 251 Guns 734 | . . . 483 251 Cannons . | . . . . . Explosions 492 | . . . 492 . Melee . | . . . . . Ramming . | . . . . . Kinetic . | . . . . . Thermal 555 | . . . 456 99 Explosive 463 | . . . 463 . Electromagnetic 208 | . . . 56 152 Impact . | . . . . . Slashing . | . . . . . Piercing . | . . . . . Highest Corruption . | . . . . . Average Corruption . | . . . . . Corruption Purged . | . . . . . Corruption Blocked . | . . . . . Overload Shots . | . . . . . Overflow Damage 26 | . . . 26 . Projectiles . | . . . . . Explosions 26 | . . . 26 . Melee . | . . . . . Knockbacks . | . . . . . Impact . | . . . . . Kinetic . | . . . . . Secondary . | . . . . . Self-Inflicted Damage 94 | . . . 94 . Shots 4 | . . . 4 . Rammed . | . . . . . Targets Rammed 2 | 2 . . . . Kicked 2 | 2 . . . . Crushed . | . . . . . Highest Temperature 383 | . 39 . 383 324 Average Temperature 106 | . 20 . 107 110 Received Heat Transfer 252 | . . . 174 78 Effects 5 | . . . 4 1 Shutdowns 1 | . . . 1 . Energy Bleed 1 | . . . . 1 Interference 1 | . . . 1 . Damage (minor) 2 | . . . 2 . Siege Activations . | . . . . . Martial Activations . | . . . . . Shielding Activations . | . . . . . Robots Disrupted . | . . . . . Combat Hostiles . | . . . . . Robots Corrupted . | . . . . . Combat Hostiles . | . . . . . Parts Fried 1 | . . . . 1 Impact Corruptions . | . . . . . Robots Melted . | . . . . . Combat Hostiles . | . . . . . Parts Melted 6 | . . . 6 . Heat Transferred 2048 | . . . 1752 296 Parts Sabotaged . | . . . . . Parts Stolen . | . . . . . Parts Stripped . | . . . . . Power Chain Reactions 1 | . . . 1 . Alert | -11 -10 -10 -9 -9 ------- Run | Yrd Mat Min Mat Min Maximum Alert Level . | . . . . . Low Security (%) 100 | 100 100 100 100 100 Level 1 . | . . . . . Level 2 . | . . . . . Level 3 . | . . . . . Level 4 . | . . . . . Level 5 . | . . . . . High Security . | . . . . . Max Security . | . . . . . Peak Influence 170 | . . . 170 119 Initial 49 | . . . . 49 Average 26 | . . . 61 12 Influence Increases 541 | . . . 466 75 Destroy 0b10 Robot/C 340 | . . . 280 60 Destroy 0b10 Robot/NC 30 | . . . 25 5 Destroy Leader 92 | . . . 82 10 Disable Machine 9 | . . . 9 . Destroy Structure 55 | . . . 55 . Lose Combat Pursuer 15 | . . . 15 . Influence Decreases 541 | . . . 316 225 Entered New Map 101 | . . . . 101 Time Decay 410 | . . . 286 124 Lost Part 30 | . . . 30 . Squads Dispatched . | . . . . . Investigation . | . . . . . Extermination . | . . . . . Reinforcement . | . . . . . Assault . | . . . . . Garrison . | . . . . . Intercept . | . . . . . Searches Triggered . | . . . . . Construction Impeded . | . . . . . Haulers Reinforced . | . . . . . Active Scanning Responses . | . . . . . Cargo Convoy Interrupts . | . . . . . Stealth | -11 -10 -10 -9 -9 --------- Run | Yrd Mat Min Mat Min Distress Signals 1 | . . . 1 . Communications Jammed . | . . . . . Distress Signals . | . . . . . Times Spotted 29 | . 2 . 20 7 Peak Tracking Total 6 | . 1 . 6 3 Tactical Retreats 1 | . . . 1 . Traps | -11 -10 -10 -9 -9 ------- Run | Yrd Mat Min Mat Min Traps Triggered 1 | . 1 . . . Indirectly . | . . . . . Trap Hack Attempts . | . . . . . Triggered . | . . . . . Disarmed . | . . . . . Reprogrammed . | . . . . . Reused . | . . . . . Traps Extracted . | . . . . . Installed . | . . . . . Triggered . | . . . . . Machines | -11 -10 -10 -9 -9 ---------- Run | Yrd Mat Min Mat Min Machines Disabled 1 | . . . 1 . Max in Single Turn 1 | . . . 1 . Machines Repaired . | . . . . . Machines Dismantled . | . . . . . Machines Sabotaged . | . . . . . Overloaded Fab Kills . | . . . . . Hacking | -11 -10 -10 -9 -9 --------- Run | Yrd Mat Min Mat Min Machines Accessed 2 | . 1 . . 1 Terminals 1 | . 1 . . . Fabricators . | . . . . . Repair Stations . | . . . . . Recycling Units . | . . . . . Scanalyzers . | . . . . . Garrison Access . | . . . . . Total Hacks 4 | . 3 . . 1 Successful 4 | . 3 . . 1 Failed . | . . . . . Catastrophic . | . . . . . Database Lockouts . | . . . . . Manual . | . . . . . Terminals 3 | . 3 . . . Fabricators . | . . . . . Repair Stations . | . . . . . Recycling Units . | . . . . . Scanalyzers . | . . . . . Garrison Access . | . . . . . Terminal Hacks 4 | . 3 . . 1 Record 3 | . 3 . . . Open Door 1 | . . . . 1 Fabricator Hacks . | . . . . . Repair Station Hacks . | . . . . . Recycling Unit Hacks . | . . . . . Scanalyzer . | . . . . . Garrison Access Hacks . | . . . . . Unauthorized Hacks . | . . . . . Terminals . | . . . . . Fabricators . | . . . . . Repair Stations . | . . . . . Recycling Units . | . . . . . Scanalyzers . | . . . . . Garrison Access . | . . . . . Data Cores Recovered . | . . . . . Used . | . . . . . Hacking Detections 1 | . 1 . . . Full Trace Events . | . . . . . Feedback Events . | . . . . . Feedback Blocked . | . . . . . Robot Schematics Acquired . | . . . . . Robots Built . | . . . . . Authchips . | . . . . . Time . | . . . . . Total Robot Build Rating . | . . . . . Part Schematics Acquired . | . . . . . Parts Built . | . . . . . Authchips . | . . . . . Time . | . . . . . Total Part Build Rating . | . . . . . Parts Repaired . | . . . . . Time . | . . . . . Parts Recycled . | . . . . . Recycled Matter . | . . . . . Retrieved Matter . | . . . . . Retrieved Components . | . . . . . Parts Scanalyzed . | . . . . . Part Schematics Acquired . | . . . . . Parts Damaged . | . . . . . Bothacking | -11 -10 -10 -9 -9 ------------ Run | Yrd Mat Min Mat Min Used RIF Installer . | . . . . . Robots Hacked . | . . . . . Non-combat . | . . . . . Combat . | . . . . . Robot Hacks Applied . | . . . . . Relay Couplers Released . | . . . . . Fabnet Peak Effective % . | . . . . . Robots Rewired . | . . . . . Allies Hacked . | . . . . . Hacks Repelled . | . . . . . Allies | -11 -10 -10 -9 -9 -------- Run | Yrd Mat Min Mat Min Total Allies . | . . . . . Largest Group . | . . . . . Highest-Rated Group . | . . . . . Highest-Rated Ally . | . . . . . Total Orders . | . . . . . Ally Attacks . | . . . . . Total Damage . | . . . . . Kills . | . . . . . Allies Corrupted . | . . . . . Allies Melted . | . . . . . Intel | -11 -10 -10 -9 -9 ------- Run | Yrd Mat Min Mat Min Active Infowar (turns) 1737 | . . . 503 1234 Sensors 1263 | . . . 29 1234 Terrain 1710 | . . . 503 1207 Robot Analysis Total . | . . . . . Derelict Logs Recovered 1 | . . . . 1 Drone Launches . | . . . . . Drone Recoveries . | . . . . . Exploration | -11 -10 -10 -9 -9 ------------- Run | Yrd Mat Min Mat Min Turns Passed 2279 | 79 180 44 742 1234 Spaces Moved 1301 | 64 147 37 434 619 Core 43 | 26 . . 14 3 Treads 75 | . . . 68 7 Legs 1176 | 31 147 37 352 609 Wheels 7 | 7 . . . . Hover . | . . . . . Flight . | . . . . . Fastest Speed 50 | 50 120 120 120 160 Average Speed 160 | 87 120 120 142 192 Slowest Speed 450 | 120 120 120 450 350 Overloaded Moves . | . . . . . Propulsion Burnouts . | . . . . . Robots Hopped . | . . . . . Potential Cave-ins . | . . . . . Cave-ins Triggered . | . . . . . Exploration Rate (%) 29 | 3 23 15 31 74 Regions Visited 4 Branch Regions 2 Pre-discovered Areas . | . . . . . Known Exits Taken . | . . . . . Unknown Exits Taken 4 | 1 1 1 1 . Scrap Searched 2 | . . . . 2 Spaces Dug . | . . . . . Terrain Destroyed 56 | . . . 56 . Melee . | . . . . . Projectile . | . . . . . AOE 56 | . . . 56 . Terrain Rammed . | . . . . . Walls Destroyed . | . . . . . Machines Disabled . | . . . . . Actions | -11 -10 -10 -9 -9 --------- Run | Yrd Mat Min Mat Min Total 1423 | 88 148 36 504 647 Wait 2 | . . . . 2 Move 1297 | 63 146 36 433 619 Hop . | . . . . . Pick Up 37 | 11 1 . 19 6 Fast Attach . | . . . . . Attach 21 | 8 . . 11 2 Detach . | . . . . . Swap 2 | 1 . . 1 . Drop 13 | 3 . . 5 5 Fire 49 | . 1 . 35 13 Melee . | . . . . . Ram . | . . . . . Kick 2 | 2 . . . . Crush . | . . . . . Escape Stasis . | . . . . . Rewire . | . . . . . Trap . | . . . . . Miscellaneous . | . . . . . Route ------- -11/Scrapyard -10/Materials -10/Mines -9/Materials (discovered 2 exits: *Min / [*Sto]) -9/Mines (discovered 2 exits: [*Mat x2]) History --------- Turn | Location | Event 4 | -11/Scrapyard | Discovered new exit (range 15) 80 | -11/Scrapyard | Entered Materials 183 | -10/Materials | Discovered new exit (range 7) 260 | -10/Materials | Entered Mines 292 | -10/Mines | Discovered new exit (range 8) 302 | -10/Mines | Build established: Mutant 304 | -10/Mines | Entered Materials 304 | -9/Materials | Evolved 2 slots: Power x1, Utility x1 325 | -9/Materials | Discovered new exit (range 12) 799 | -9/Materials | Lost 3 parts (2p1n) 863 | -9/Materials | Discovered new exit (range 10) 1046 | -9/Materials | Entered Mines 1204 | -9/Mines | Learned Materials stockpile data 1223 | -9/Mines | Discovered new exit (range 11) 1922 | -9/Mines | Met a Derelict who couldn't figure out how to use a Trap Extractor 2195 | -9/Mines | Discovered new exit (range 8) 2204 | -9/Mines | Received a Rocket Launcher from a helpful Derelict 2228 | -9/Mines | Assembled infested the area 2258 | -9/Mines | Core integrity fell below 50% 2271 | -9/Mines | Core integrity fell below 20% 2280 | -9/Mines | Destroyed by D-53 Grenadier with Mini Grenade Launcher Last Messages --------------- 02233_ C-30 ARC bursts open, deploying its payload. 02233_ D-53 Grenadier unfolds itself. 02246_ The unstable cave ceiling collapses. 02247_ Imp. EM Shotgun destroyed. 02247_ Aluminum Leg destroyed. 02253_ The unstable cave ceiling collapses. 02253_ Terrain Scanner destroyed. 02254_ Dropped Sml. Laser. 02254_ Acquired Sml. Laser. 02257_ Destroyed Shock Absorption System. 02259_ The unstable cave ceiling collapses. 02259_ D-53 Grenadier destroyed. 02261_ The unstable cave ceiling collapses. 02264_ Med. Laser destroyed. 02266_ The unstable cave ceiling collapses. 02270_ Hvy. Ion Engine destroyed. 02270_ Aluminum Leg destroyed. 02273_ The unstable cave ceiling collapses. 02276_ Hvy. Ion Engine destroyed. 02278_ The unstable cave ceiling collapses. Map ----- +----------------------------------------------------+ | ##?????????????????????????????????????? | | ??#?????#??????????????????????????????? | | ?###???????????????????????????????????? | | # ##??#???????????????????????????????? | | ##?????????????????????????????????? | | #??#???????????????????????????????? | | #???? ?????????????????????????????? | | ##?##???????????????????????????????? | | #???????????????????????????????????? | | #?#????????????????????????????????? | | ##???????????????????????????????? | | # #???????????????????????????????? | | # #??????????????????????????????? | | ? #??????????????????????????????? | | ? #??????????????????????????????? | | ? #?????????????????????????????? | | ? ?????????????????????????????? | | ? #### ?????????????#######????????? | | #? ##??##?????????????? a #?????#??? | | ?#####?????? ???????#???#a## #????????? | | ??#?????#????????????#?## ## #????????? | | ??????#???????#????????# ####?????? | | ??#???#?????#??###????## ##????? | | ???#?????#?#?## ##??## ##???? | | ?#???#???#?#?# ##??# #???? | | #?#?#??#???### < ##??# @ #???? | | ##???????##### #???# ###???? | | ######??# ##?#?# #?#?? | | ##?# !! ##?#?## # #???? | | #?# !! #?????# # ##???? | | ##### #?# !! #?????## #???? | | ##??# ### !! #?###### #???? | | ????# # ##?#???## d# #???? | | ???#### ####?######?#??## # ###???? | | ?#????# #?#??#### ##?????? | | ??????# #??#?#??### ########? | | ?????############ #????######%# #? | | ?????####??#?#### #??#### """ #? | | ????## #??#???# ##### """ #? | | ?#?## ???#?# ### ## """ #? | | ????# ?????# ## #? ?? | | ??### ###?# ## ## < #? | | ??? #?### # #?? #? | | ?#??## ## #?? #? | | ???#??# #?? #? | | ??????### ##???#####? | | ????????##### ##????????? | | ???????????### ##### #?#??????#? | | ?????????????## ##???## #??????##?? | | ??????????????# #?????# #????????#? | +----------------------------------------------------+ Best States ------------- Heat Dissipation 28 Energy Generation 23 Energy Capacity 460 Matter Stores 300 Matter Capacity 300 Sight Range 16 Robot Scan Range 15 Terrain Scan Range 14 Terrain Scan Density 10 Resistance: KI 20 Resistance: TH 20 Resistance: EX 20 Resistance: EM 20 Resistance: I 20 Resistance: S 20 Resistance: P 20 Evasion (%) 55 Recoil Reduction 2 Offensive Hacking 10 Item Schematics ----------------- None Robot Schematics ------------------ None Fabricated ------------ Nothing Repaired ---------- Nothing Alien Tech Used ----------------- None Achievements -------------- None Challenges ------------ None Game ------ Seed NovaBeamSpoofer Manual? 0 Play Time 00:20:38 Cumulative 4.1 hours Start 2025.09.14 @ 18:28:55 End 2025.09.14 @ 18:55:24 Sessions 1 Manual Loads 0 Difficulty Adventurer Special Mode None Game No. 10 Rogue 0 Adventurer 10 Explorer 0 Win Type - Total 0 Types 0/0/0/0/0/0/0/0/0/0 Lore% 6 Gallery% 6 Achievement% 9 Wizard Run 0 Options --------- Layout 0 ASCII 0 Keyboard 0 Movement Arrows Keybinds 0 Fullscreen 1 Font 12/Smallcaps Map View 38x28 Zoom Use 99% Tactical HUD 1 Map Filters NONE Filters NONE Steam SD RUN: 6ef7651d-feaa-4fba-beb0-03c4d7937d86